bitfinex-derivatives/quotes_SOLF0:USTF0_20250212
["timestamp","ask_amount","ask_price","bid_price","bid_amount"]
[1739349126151,0.03412568,196.21,196.2,19.14358947]
[1739349126554,195.0,196.31,196.23,5.0962]
[1739349126854,195.0,196.31,196.23,19.14278947]
[1739349127150,5.0945,196.3,196.23,19.14278947]
[1739349127756,0.03263793,196.28,196.25,0.03570451]
[1739349131757,0.03263793,196.28,196.25,5.13140451]
[1739349131955,0.03263793,196.28,196.25,0.03570451]
[1739349132659,0.03263793,196.28,196.27,5.0952]
[1739349134253,0.03263793,196.28,196.26,14.04658947]
[1739349134457,0.03263793,196.28,196.26,19.14208947]
[1739349134958,0.03263793,196.28,196.26,14.04658947]
[1739349135555,195.0,196.39,196.26,14.04658947]
[1739349135753,14.04658947,196.44,196.32,14.04658947]
[1739349136860,5.0921,196.39,196.36,0.03266651]
[1739349138460,0.0369384,196.4,196.36,0.03266651]
[1739349139355,0.0369384,196.4,196.39,5.0921]
[1739349141259,0.0369384,196.4,196.37,5.0925]
[1739349141561,0.0369384,196.4,196.36,0.03266651]
[1739349142061,5.1288384,196.4,196.36,0.03266651]
[1739349142560,0.0369384,196.4,196.36,0.03266651]
[1739349143259,5.0926,196.37,196.36,0.03266651]
[1739349145160,5.1290384,196.4,196.36,0.03266651]
[1739349145854,0.0369384,196.4,196.36,0.03266651]
[1739349146054,0.0369384,196.4,196.37,14.04658947]
[1739349147758,0.0369384,196.4,196.38,5.0924]
[1739349148462,0.0369384,196.4,196.39,5.0921]
[1739349150465,5.0897,196.49,196.43,5.091]
[1739349150862,5.0893,196.5,196.42,14.04658947]
[1739349151167,14.04658947,196.53,196.42,14.04658947]
[1739349151567,14.04658947,196.53,196.46,0.03246801]
[1739349154066,5.089,196.51,196.46,0.03246801]
[1739349155370,5.089,196.51,196.46,5.12256801]
[1739349155568,5.089,196.51,196.46,0.03246801]
[1739349156163,5.089,196.51,196.46,5.12276801]
[1739349156570,5.0883,196.54,196.49,5.0895]
[1739349157069,5.0883,196.54,196.5,0.03311182]
[1739349157369,3.0658,196.56,196.5,0.03311182]
[1739349157966,5.089,196.51,196.5,0.03311182]
[1739349159273,5.0888,196.52,196.5,0.03311182]
[1739349159474,17.11238947,196.56,196.5,0.03311182]
[1739349159776,5.0887,196.53,196.5,0.03311182]
[1739349159964,3.0658,196.56,196.5,0.03311182]
[1739349160273,1.5034,196.6,196.51,14.04658947]
[1739349161267,198.0515,196.66,196.54,14.04658947]
[1739349161576,1.575,196.64,196.54,14.04658947]
[1739349161777,1.575,196.64,196.38,4.6466]
[1739349161778,5.087,196.59,196.58,0.03783891]
[1739349161980,14.04658947,196.62,196.51,14.04658947]
[1739349162276,5.0872,196.58,196.57,0.03240652]
[1739349163987,14.04658947,196.59,196.48,14.04658947]
[1739349164183,1.5313,196.57,196.46,5.0903]
[1739349164781,1.5313,196.57,196.45,14.04658947]
[1739349165085,14.04658947,196.56,196.42,14.04658947]
[1739349165275,0.03634098,196.53,196.49,0.03899487]
[1739349165878,5.0893,196.5,196.49,0.03899487]
[1739349166084,0.03634098,196.53,196.49,0.03899487]
[1739349166978,5.0893,196.5,196.49,0.03899487]
[1739349167586,5.089,196.52,196.49,0.03899487]
[1739349168787,5.089,196.51,196.49,0.03899487]
[1739349169089,0.03634098,196.53,196.49,0.03899487]
[1739349169391,5.0893,196.5,196.49,0.03899487]
[1739349170888,0.03634098,196.53,196.42,14.04658947]
[1739349171084,14.04658947,196.54,196.42,14.04658947]
[1739349171284,14.04658947,196.54,196.42,19.13778947]
[1739349171687,14.04658947,196.51,196.39,14.04658947]
[1739349171886,1.5781,196.5,196.4,5.0916]
[1739349172187,0.03381861,196.47,196.43,0.03507476]
[1739349172491,0.03381861,196.47,196.45,14.04658947]
[1739349173884,0.03381861,196.47,196.45,5.0903]
[1739349174182,0.03381861,196.47,196.43,0.03507476]
[1739349175190,0.03381861,196.47,196.46,5.0903]
[1739349179092,1.4993,196.56,196.46,14.04658947]
[1739349180091,1.4993,196.56,196.48,5.0898]
[1739349180092,5.0885,196.54,196.48,5.0898]
[1739349180285,0.035942,196.53,196.49,0.03353043]
[1739349180689,5.124642,196.53,196.49,0.03353043]
[1739349180993,0.035942,196.53,196.49,0.03353043]
[1739349181393,5.0888,196.52,196.49,0.03353043]
[1739349181595,0.035942,196.53,196.49,0.03353043]
[1739349182092,5.089,196.51,196.49,0.03353043]
[1739349182491,14.04658947,196.51,196.39,14.04658947]
[1739349182693,14.04658947,196.51,196.41,5.0916]
[1739349182893,14.04658947,196.51,196.39,14.04658947]
[1739349183696,0.03869774,196.47,196.43,0.03831244]
[1739349184297,5.0908,196.44,196.43,0.03831244]
[1739349184693,14.04658947,196.45,196.35,56.74173357]
[1739349184888,5.0916,196.41,196.36,5.0927]
[1739349185091,5.0916,196.41,196.35,56.74173357]
[1739349185298,1.5096,196.44,196.35,56.74173357]
[1739349185595,5.0914,196.42,196.36,5.0929]
[1739349185792,0.03883417,196.41,196.38,0.03731]
[1739349186793,0.03883417,196.41,196.38,5.12941]
[1739349187795,0.03883417,196.41,196.38,0.03731]
[1739349188999,5.13043417,196.41,196.38,0.03731]
[1739349189200,0.03883417,196.41,196.38,0.03731]
[1739349189801,5.0919,196.4,196.38,0.03731]
[1739349190199,0.03883417,196.41,196.38,0.03731]
[1739349192204,5.13043417,196.41,196.38,0.03731]
[1739349193502,0.03883417,196.41,196.38,0.03731]
[1739349194905,5.0921,196.39,196.38,0.03731]
[1739349196200,5.0919,196.4,196.38,0.03731]
[1739349196500,0.03883417,196.41,196.38,0.03731]
[1739349197805,5.13043417,196.41,196.38,0.03731]
[1739349198307,0.03883417,196.41,196.38,5.12971]
[1739349198803,0.03883417,196.41,196.38,0.03731]
[1739349199004,5.0921,196.39,196.38,0.03731]
[1739349201410,5.0933,196.35,196.3,5.0942]
[1739349201612,14.04658947,196.36,196.26,3.165]
[1739349201911,5.0939,196.33,196.28,5.0949]
[1739349202209,14.04658947,196.36,196.26,3.165]
[1739349202410,5.0939,196.33,196.27,5.0952]
[1739349202707,0.03468624,196.33,196.29,0.03659052]
[1739349203707,0.03468624,196.33,196.29,5.13109052]
[1739349204414,0.03468624,196.33,196.3,5.0943]
[1739349204811,0.03468624,196.33,196.29,0.03659052]
[1739349206213,5.094,196.32,196.29,0.03659052]
[1739349206908,0.03468624,196.33,196.29,0.03659052]
[1739349208614,5.094,196.32,196.29,0.03659052]
[1739349209109,0.03468624,196.33,196.29,0.03659052]
[1739349211513,5.0945,196.3,196.29,0.03659052]
[1739349212915,5.0941,196.32,196.29,0.03659052]
[1739349213114,14.08127571,196.33,196.29,0.03659052]
[1739349214809,5.0945,196.3,196.29,0.03659052]
[1739349216119,14.08127571,196.33,196.22,5.0963]
[1739349216317,14.08127571,196.33,196.19,3.0261]
[1739349216518,14.04658947,196.33,196.19,3.0261]
[1739349217313,0.03341961,196.28,196.24,0.03894748]
[1739349218115,5.0957,196.26,196.24,0.03894748]
[1739349218721,5.12841961,196.28,196.24,0.03894748]
[1739349219320,0.03341961,196.28,196.24,0.03894748]
[1739349221723,0.03341961,196.28,196.24,14.08553695]
[1739349222722,0.03341961,196.28,196.27,5.0952]
[1739349223722,0.03341961,196.28,196.25,5.0957]
[1739349223917,0.03341961,196.28,196.24,0.03894748]
[1739349225628,5.0957,196.26,196.24,0.03894748]
[1739349227331,0.03341961,196.28,196.24,0.03894748]
[1739349228025,5.0957,196.26,196.24,0.03894748]
[1739349228427,0.03341961,196.28,196.24,0.03894748]
[1739349229528,5.12841961,196.28,196.24,0.03894748]
[1739349230231,5.0952,196.27,196.24,0.03894748]
[1739349231232,5.0955,196.26,196.24,0.03894748]
[1739349231431,0.03341961,196.28,196.24,0.03894748]
[1739349231927,5.0955,196.27,196.24,0.03894748]
[1739349232933,5.0955,196.26,196.24,0.03894748]
[1739349235337,0.03341961,196.28,196.24,0.03894748]
[1739349235534,5.0953,196.27,196.24,0.03894748]
[1739349235836,0.03341961,196.28,196.24,0.03894748]
[1739349236838,5.0957,196.26,196.24,0.03894748]
[1739349238533,0.03341961,196.28,196.24,0.03894748]
[1739349238738,5.0958,196.25,196.24,0.03894748]
[1739349240940,19.14208947,196.27,196.24,0.03894748]
[1739349241136,14.04658947,196.27,196.24,0.03894748]
[1739349241545,5.0957,196.26,196.24,0.03894748]
[1739349241741,14.04658947,196.27,196.24,0.03894748]
[1739349242339,5.0958,196.25,196.24,0.03894748]
[1739349242535,14.04658947,196.27,196.17,5.0978]
[1739349242836,14.04658947,196.24,196.17,5.0978]
[1739349243444,5.0968,196.22,196.18,5.0976]
[1739349243645,0.03468752,196.22,196.19,0.03843387]
[1739349244546,0.03468752,196.22,196.2,5.097]
[1739349245944,0.03468752,196.22,196.21,5.0968]
[1739349246749,0.03468752,196.22,196.2,5.097]
[1739349246948,0.03468752,196.22,196.19,0.03843387]
[1739349247449,0.03468752,196.22,196.19,5.13553387]
[1739349247646,0.03468752,196.22,196.19,0.03843387]
[1739349249143,5.097,196.2,196.19,0.03843387]
[1739349250450,0.03468752,196.22,196.19,0.03843387]
[1739349251453,5.097,196.21,196.19,0.03843387]
[1739349252455,5.097,196.2,196.19,0.03843387]
[1739349256054,0.03468752,196.22,196.19,0.03843387]
[1739349260359,0.03468752,196.22,196.19,5.13553387]
[1739349261558,0.03468752,196.22,196.19,0.03843387]
[1739349263761,0.03468752,196.22,196.19,5.13573387]
[1739349266666,0.03468752,196.22,196.19,0.03843387]
[1739349267668,5.097,196.21,196.19,0.03843387]
[1739349267866,9.01458601,196.22,196.19,0.03843387]
[1739349268167,0.03468752,196.22,196.19,0.03843387]
[1739349269066,0.03468752,196.22,196.19,5.13573387]
[1739349271169,0.03468752,196.22,196.2,5.097]
[1739349271571,0.03468752,196.22,196.19,0.03843387]
[1739349271765,0.03468752,196.22,196.19,5.13573387]
[1739349272568,0.03468752,196.22,196.2,5.097]
[1739349272872,0.03468752,196.22,196.19,0.03843387]
[1739349273374,14.11128601,196.22,196.19,0.03843387]
[1739349273569,9.01458601,196.22,196.19,0.03843387]
[1739349274673,5.0968,196.21,196.19,0.03843387]
[1739349277178,5.097,196.2,196.19,0.03843387]
[1739349277578,5.0968,196.21,196.19,0.03843387]
[1739349279270,5.097,196.2,196.19,0.03843387]
[1739349279476,9.01458601,196.22,196.19,0.03843387]
[1739349280183,5.097,196.2,196.19,0.03843387]
[1739349283085,14.07689849,196.2,196.19,0.03843387]
[1739349284185,5.0987,196.14,196.1,11.95029849]
[1739349284386,5.0987,196.14,196.09,5.0997]
[1739349285083,14.07859849,196.14,196.09,5.0997]
[1739349285484,0.03802603,196.13,196.1,0.03843233]
[1739349287188,0.03802603,196.13,196.12,8.97989849]
[1739349287887,0.03802603,196.13,196.12,14.07899849]
[1739349288088,0.03802603,196.13,196.12,5.0991]
[1739349288280,0.03802603,196.13,196.1,9.01833082]
[1739349288786,0.03802603,196.13,196.1,0.03843233]
[1739349290788,0.03802603,196.13,196.11,5.0993]
[1739349291791,0.03802603,196.13,196.12,14.07899849]
[1739349297895,8.97989849,196.2,196.16,5.0979]
[1739349298394,8.97989849,196.2,196.15,8.97989849]
[1739349298395,8.97989849,196.22,196.17,5.0977]
[1739349298586,14.07649849,196.22,196.17,5.0977]
[1739349298991,0.03380645,196.21,196.18,0.03497476]
[1739349299593,0.03380645,196.21,196.2,5.097]
[1739349301687,8.97989849,196.28,196.23,5.0961]
[1739349302694,0.0323092,196.27,196.24,0.03900426]
[1739349302995,0.0323092,196.27,196.24,5.13500426]
[1739349303191,0.0323092,196.27,196.24,9.01890275]
[1739349303890,0.0323092,196.27,196.25,5.0958]
[1739349304291,0.0323092,196.27,196.24,9.01890275]
[1739349304591,0.0323092,196.27,196.24,0.03900426]
[1739349304794,14.07559849,196.26,196.24,0.03900426]
[1739349304990,8.97989849,196.26,196.24,0.03900426]
[1739349305791,5.0958,196.25,196.24,0.03900426]
[1739349306601,8.97989849,196.26,196.14,8.97989849]
[1739349306800,8.97989849,196.2,196.14,8.97989849]
[1739349307189,5.0973,196.19,196.13,5.0986]
[1739349307499,8.97989849,196.18,196.13,5.0986]
[1739349307701,9.01698789,196.18,196.14,0.03225613]
[1739349307999,14.11458789,196.18,196.14,0.03225613]
[1739349309793,8.97989849,196.16,196.14,0.03225613]
[1739349310998,9.01698789,196.18,196.14,0.03225613]
[1739349312505,9.01698789,196.18,196.14,5.13085613]
[1739349312705,5.098,196.17,196.14,0.03225613]
[1739349312909,9.01698789,196.18,196.14,0.03225613]
[1739349313705,0.0370894,196.18,196.14,0.03225613]
[1739349314707,5.0978,196.17,196.14,0.03225613]
[1739349315108,0.0370894,196.18,196.14,5.13085613]
[1739349315609,0.0370894,196.18,196.14,0.03225613]
[1739349315810,5.1346894,196.18,196.14,0.03225613]
[1739349317010,0.0370894,196.18,196.14,0.03225613]
[1739349318308,5.1346894,196.18,196.14,0.03225613]
[1739349318811,0.0370894,196.18,196.14,0.03225613]
[1739349319003,5.0981,196.16,196.14,0.03225613]
[1739349320314,0.0370894,196.18,196.14,0.03225613]
[1739349320515,5.1348894,196.18,196.14,0.03225613]
[1739349325115,5.1348894,196.18,196.14,5.13075613]
[1739349325512,0.0370894,196.18,196.14,0.03225613]
[1739349325717,0.0370894,196.18,196.16,5.098]
[1739349328415,0.0370894,196.18,196.14,0.03225613]
[1739349328618,0.0370894,196.18,196.17,5.0978]
[1739349329020,8.94e-05,196.18,196.17,5.0978]
[1739349332614,8.94e-05,196.18,196.16,5.098]
[1739349333314,8.94e-05,196.18,196.14,0.03225613]
[1739349333513,8.94e-05,196.18,196.17,5.0978]
[1739349335723,8.94e-05,196.18,196.17,14.07878767]
[1739349340126,8.94e-05,196.18,196.15,8.98098767]
[1739349340827,8.94e-05,196.18,196.15,14.07928767]
[1739349341928,8.94e-05,196.18,196.16,5.0978]
[1739349342327,8.94e-05,196.18,196.17,8.98098767]
[1739349342527,8.94e-05,196.18,196.17,14.07878767]
[1739349351933,8.98098767,196.28,196.17,8.98098767]
[1739349352135,8.98098767,196.28,196.23,5.0963]
[1739349352731,6.6404,196.29,196.23,5.0963]
[1739349353029,1.5455,196.29,196.22,14.07748767]
[1739349353235,5.0952,196.27,196.24,0.03292398]
[1739349354828,5.13215244,196.28,196.24,5.12892398]
[1739349355332,5.0954,196.27,196.24,0.03292398]
[1739349356640,5.0958,196.25,196.24,0.03292398]
[1739349357539,8.98098767,196.26,196.24,0.03292398]
[1739349357540,14.07648767,196.26,196.24,0.03292398]
[1739349358438,9.01814011,196.28,196.24,0.03292398]
[1739349359940,8.98098767,196.26,196.24,0.03292398]
[1739349360740,5.0958,196.25,196.24,0.03292398]
[1739349363241,14.07648767,196.26,196.24,0.03292398]
[1739349363439,5.0955,196.26,196.24,0.03292398]
[1739349363640,9.01814011,196.28,196.24,0.03292398]
[1739349363840,5.0956,196.26,196.24,0.03292398]
[1739349365338,0.03715244,196.28,196.24,0.03292398]
[1739349366645,5.0958,196.25,196.24,0.03292398]
[1739349368545,8.98098767,196.26,196.18,8.98098767]
[1739349368847,5.0962,196.24,196.18,8.98098767]
[1739349369043,8.98098767,196.26,196.18,8.98098767]
[1739349369544,5.0964,196.23,196.18,14.07828767]
[1739349369742,5.0964,196.23,196.2,0.03289118]
[1739349370946,0.03724145,196.24,196.2,0.03289118]
[1739349371150,5.0968,196.21,196.2,0.03289118]
[1739349372954,5.0978,196.18,196.14,8.98098767]
[1739349374254,5.1310289,196.18,196.14,9.01779067]
[1739349374657,5.0981,196.17,196.14,9.01779067]
[1739349375356,0.0332289,196.18,196.14,0.036803]
[1739349376857,5.0983,196.15,196.14,0.036803]
[1739349385175,5.0981,196.16,196.14,0.036803]
[1739349385368,1.6400289,196.18,196.14,0.036803]
[1739349386574,5.0983,196.16,196.14,0.036803]
[1739349386973,8.98098767,196.17,196.14,0.036803]
[1739349387273,5.0983,196.15,196.14,0.036803]
[1739349388980,5.0981,196.16,196.14,0.036803]
[1739349389182,8.98098767,196.17,196.14,0.036803]
[1739349389679,5.1310289,196.18,196.14,0.036803]
[1739349390681,5.098,196.17,196.14,0.036803]
[1739349390978,0.0332289,196.18,196.14,0.036803]
[1739349391178,5.1310289,196.18,196.14,0.036803]
[1739349391481,0.0332289,196.18,196.14,0.036803]
[1739349391777,5.0981,196.17,196.14,0.036803]
[1739349392581,0.0332289,196.18,196.14,0.036803]
[1739349392880,5.1308289,196.18,196.14,0.036803]
[1739349393082,0.0332289,196.18,196.16,8.98098767]
[1739349394780,0.0332289,196.18,196.17,5.0978]
[1739349398176,0.0332289,196.18,196.16,8.98098767]
[1739349399784,0.0332289,196.18,196.14,9.01779067]
[1739349400481,0.0332289,196.18,196.14,14.11629067]
[1739349401685,0.0332289,196.18,196.14,9.01779067]
[1739349401880,5.1308289,196.18,196.14,9.01779067]
[1739349402579,0.0332289,196.18,196.14,0.036803]
[1739349402786,5.0981,196.17,196.14,0.036803]
[1739349404686,5.0981,196.16,196.14,0.036803]
[1739349405585,5.0983,196.15,196.14,0.036803]
[1739349405785,0.0332289,196.18,196.14,0.036803]
[1739349406183,5.0983,196.15,196.14,0.036803]
[1739349406387,14.07928767,196.15,196.14,0.036803]
[1739349409289,5.0983,196.15,196.14,0.036803]
[1739349411991,8.98098767,196.17,196.14,0.036803]
[1739349413891,5.0983,196.15,196.14,0.036803]
[1739349414092,8.98098767,196.17,196.14,0.036803]
[1739349415294,14.07878767,196.17,196.14,0.036803]
[1739349415995,0.0332289,196.18,196.14,9.01779067]
[1739349416686,0.0332289,196.18,196.16,14.07888767]
[1739349417092,0.0332289,196.18,196.16,8.98098767]
[1739349417396,0.0332289,196.18,196.15,5.0983]
[1739349419200,0.0332289,196.18,196.14,9.01779067]
[1739349419493,0.0332289,196.18,196.14,14.11639067]
[1739349420493,0.0332289,196.18,196.16,8.98098767]
[1739349421896,0.0332289,196.18,196.17,5.0978]
[1739349422603,8.98098767,196.29,196.16,8.98098767]
[1739349422797,8.98098767,196.29,196.22,8.98098767]
[1739349423496,5.095,196.28,196.23,5.0962]
[1739349423896,0.03368244,196.27,196.24,0.03784619]
[1739349425200,5.12898244,196.27,196.24,0.03784619]
[1739349426703,0.03368244,196.27,196.24,0.03784619]
[1739349427000,5.0957,196.25,196.24,0.03784619]
[1739349427999,14.07668767,196.25,196.24,0.03784619]
[1739349428195,8.98098767,196.25,196.15,13.54278767]
[1739349428405,8.98098767,196.21,196.16,5.0981]
[1739349428601,8.98098767,196.25,196.17,8.98098767]
[1739349428802,8.98098767,196.25,196.19,8.98098767]
[1739349429406,14.07688767,196.25,196.19,14.07808767]
[1739349429601,0.03598597,196.24,196.21,8.98098767]
[1739349429801,0.03598597,196.24,196.23,8.98098767]
[1739349430208,0.03598597,196.24,196.23,14.07728767]
[1739349434510,0.03598597,196.24,196.23,8.98098767]
[1739349434913,0.03598597,196.24,196.21,8.98098767]
[1739349437414,0.03598597,196.24,196.22,5.0963]
[1739349441313,0.03598597,196.24,196.21,8.98098767]
[1739349442215,0.03598597,196.24,196.21,14.07778767]
[1739349442611,0.03598597,196.24,196.21,8.98098767]
[1739349443210,0.03598597,196.24,196.23,8.98098767]
[1739349445012,0.03598597,196.24,196.21,8.98098767]
[1739349445813,0.03598597,196.24,196.23,8.98098767]
[1739349450022,0.03598597,196.24,196.23,14.07728767]
[1739349455622,8.98098767,196.33,196.25,5.0956]
[1739349455821,5.0942,196.31,196.27,8.98098767]
[1739349456332,29.78546966,196.41,196.29,8.98098767]
[1739349456527,38.76645733,196.41,196.36,8.98098767]
[1739349456722,0.03683156,196.37,196.36,8.98098767]
[1739349457128,85.39474757,196.42,196.36,8.98098767]
[1739349457329,85.39474757,196.42,196.4,8.98098767]
[1739349457629,0.03856285,196.41,196.4,8.98098767]
[1739349459135,85.39474757,196.42,196.4,8.98098767]
[1739349459336,85.39474757,196.42,196.41,5.0916]
[1739349459526,85.39474757,196.42,196.4,8.98098767]
[1739349459834,13.99533859,196.53,196.41,13.99533859]
[1739349460333,0.03310599,196.47,196.41,13.99533859]
[1739349460535,0.03310599,196.47,196.44,0.03440328]
[1739349461135,5.12310599,196.47,196.44,0.03440328]
[1739349461540,0.03310599,196.47,196.44,0.03440328]
[1739349462037,5.0904,196.46,196.44,0.03440328]
[1739349462233,0.03310599,196.47,196.44,0.03440328]
[1739349462933,5.0906,196.45,196.44,0.03440328]
[1739349463132,14.02844458,196.47,196.35,67.54438251]
[1739349463439,13.99533859,196.44,196.35,53.54904392]
[1739349463839,5.0924,196.38,196.35,53.54904392]
[1739349464341,5.0927,196.37,196.35,53.54904392]
[1739349464540,0.0348247,196.38,196.35,0.03307472]
[1739349464942,5.0926,196.37,196.35,0.03307472]
[1739349465240,0.0348247,196.38,196.35,0.03307472]
[1739349465740,5.0929,196.36,196.35,0.03307472]
[1739349466134,1.6132,196.37,196.26,13.99533859]
[1739349466336,5.0945,196.3,196.24,100.88]
[1739349467243,5.0942,196.31,196.24,105.9759]
[1739349467435,0.03434823,196.29,196.25,0.03763403]
[1739349467939,0.03434823,196.29,196.26,13.99533859]
[1739349468742,0.03434823,196.29,196.26,19.09063859]
[1739349469440,0.03434823,196.29,196.26,13.99533859]
[1739349472146,0.03434823,196.29,196.27,5.0952]
[1739349472442,0.03434823,196.29,196.26,13.99533859]
[1739349473544,5.12914823,196.29,196.25,0.03763403]
[1739349475244,0.03434823,196.29,196.25,0.03763403]
[1739349478749,5.0953,196.27,196.25,0.03763403]
[1739349479548,5.0955,196.26,196.25,0.03763403]
[1739349480048,0.03434823,196.29,196.25,0.03763403]
[1739349480249,5.095,196.28,196.25,0.03763403]
[1739349480651,0.03434823,196.29,196.25,0.03763403]
[1739349480850,5.0955,196.27,196.25,0.03763403]
[1739349481650,0.03434823,196.29,196.25,0.03763403]
[1739349481651,5.0955,196.26,196.25,0.03763403]
[1739349483047,5.0952,196.28,196.25,0.03763403]
[1739349483643,0.03434823,196.29,196.25,0.03763403]
[1739349483849,5.0953,196.27,196.25,0.03763403]
[1739349485351,0.03434823,196.29,196.25,0.03763403]
[1739349486247,5.0951,196.28,196.25,0.03763403]
[1739349486447,0.03434823,196.29,196.25,0.03763403]
[1739349487454,5.12934823,196.29,196.25,0.03763403]
[1739349487656,0.03434823,196.29,196.25,0.03763403]
[1739349488051,5.0954,196.27,196.25,0.03763403]
[1739349489151,0.03434823,196.29,196.25,0.03763403]
[1739349489356,5.0955,196.26,196.25,0.03763403]
[1739349489856,14.07418782,196.26,196.25,0.03763403]
[1739349492155,5.0952,196.27,196.25,0.03763403]
[1739349492954,0.03434823,196.29,196.25,0.03763403]
[1739349493153,5.0955,196.26,196.25,0.03763403]
[1739349495059,0.03434823,196.29,196.25,0.03763403]
[1739349495661,5.12934823,196.29,196.25,0.03763403]
[1739349495855,0.03434823,196.29,196.25,0.03763403]
[1739349496254,5.0955,196.27,196.25,0.03763403]
[1739349497165,0.03434823,196.29,196.25,0.03763403]
[1739349497368,5.095,196.28,196.25,0.03763403]
[1739349498962,5.0954,196.27,196.25,0.03763403]
[1739349500161,5.12924823,196.29,196.25,0.03763403]
[1739349500464,0.03434823,196.29,196.25,0.03763403]
[1739349500666,5.095,196.28,196.25,0.03763403]
[1739349500864,0.03434823,196.29,196.25,0.03763403]
[1739349501366,5.12904823,196.29,196.25,0.03763403]
[1739349502063,0.03434823,196.29,196.25,5.13333403]
[1739349502754,5.12904823,196.29,196.25,5.13333403]
[1739349503965,0.03434823,196.29,196.26,8.97868782]
[1739349504365,0.03434823,196.29,196.28,8.97868782]
[1739349507570,0.03434823,196.29,196.26,8.97868782]
[1739349507868,5.12904823,196.29,196.26,8.97868782]
[1739349508070,0.03434823,196.29,196.25,0.03763403]
[1739349508470,5.095,196.28,196.25,0.03763403]
[1739349508969,0.03434823,196.29,196.25,0.03763403]
[1739349509471,0.03434823,196.29,196.26,8.97868782]
[1739349512171,0.03434823,196.29,196.25,0.03763403]
[1739349512575,5.12914823,196.29,196.25,0.03763403]
[1739349513077,5.0952,196.28,196.25,0.03763403]
[1739349514377,5.12904823,196.29,196.25,0.03763403]
[1739349514577,0.03434823,196.29,196.25,0.03763403]
[1739349515776,5.12904823,196.29,196.25,0.03763403]
[1739349516177,0.03434823,196.29,196.26,8.97868782]
[1739349518981,5.12904823,196.29,196.26,8.97868782]
[1739349519179,0.03434823,196.29,196.26,8.97868782]
[1739349519776,0.03434823,196.29,196.26,14.07418782]
[1739349522383,0.03434823,196.29,196.26,8.97868782]
[1739349525185,0.03434823,196.29,196.26,14.07418782]
[1739349525580,0.03434823,196.29,196.26,8.97868782]
[1739349525882,5.12904823,196.29,196.26,8.97868782]
[1739349526083,0.03434823,196.29,196.26,8.97868782]
[1739349526587,0.03434823,196.29,196.25,0.03763403]
[1739349526785,5.095,196.28,196.25,0.03763403]
[1739349528086,0.03434823,196.29,196.25,0.03763403]
[1739349528087,5.12914823,196.29,196.25,0.03763403]
[1739349528289,0.03434823,196.29,196.25,0.03763403]
[1739349529288,0.03434823,196.29,196.25,5.13313403]
[1739349529989,0.03434823,196.29,196.26,8.97868782]
[1739349531883,5.12914823,196.29,196.26,8.97868782]
[1739349532193,0.03434823,196.29,196.25,0.03763403]
[1739349532492,5.0951,196.28,196.25,0.03763403]
[1739349532792,0.03434823,196.29,196.25,0.03763403]
[1739349533690,5.095,196.28,196.25,0.03763403]
[1739349534889,0.03434823,196.29,196.25,0.03763403]
[1739349535890,0.03434823,196.29,196.25,5.13333403]
[1739349537796,5.12914823,196.29,196.25,5.13333403]
[1739349538194,5.12914823,196.29,196.25,0.03763403]
[1739349541500,5.12914823,196.29,196.25,5.13333403]
[1739349544103,5.0951,196.28,196.25,0.03763403]
[1739349548505,0.03434823,196.29,196.25,0.03763403]
[1739349548807,5.12914823,196.29,196.25,0.03763403]
[1739349549107,0.03434823,196.29,196.25,0.03763403]
[1739349549405,5.095,196.28,196.25,0.03763403]
[1739349549601,0.03434823,196.29,196.25,0.03763403]
[1739349549805,8.97868782,196.28,196.25,0.03763403]
[1739349550001,5.0955,196.26,196.25,0.03763403]
[1739349553208,14.07418782,196.26,196.25,0.03763403]
[1739349561215,5.0955,196.26,196.25,0.03763403]
[1739349563111,0.03434823,196.29,196.25,0.03763403]
[1739349564016,0.03434823,196.29,196.25,5.13333403]
[1739349566115,0.03434823,196.29,196.25,0.03763403]
[1739349566421,5.12934823,196.29,196.25,0.03763403]
[1739349567419,0.03434823,196.29,196.25,0.03763403]
[1739349567621,5.095,196.28,196.25,0.03763403]
[1739349569217,8.97868782,196.26,196.25,0.03763403]
[1739349570318,14.07418782,196.26,196.25,0.03763403]
[1739349574914,5.0966,196.22,196.18,14.07618782]
[1739349575116,14.07528782,196.22,196.16,8.97868782]
[1739349575316,8.97868782,196.22,196.16,8.97868782]
[1739349575911,0.03503068,196.21,196.17,0.03409]
[1739349576921,5.0971,196.2,196.17,0.03409]
[1739349578426,5.0973,196.19,196.17,0.03409]
[1739349580323,8.97868782,196.2,196.17,0.03409]
[1739349580521,5.0971,196.2,196.17,0.03409]
[1739349583631,5.0974,196.19,196.17,0.03409]
[1739349584135,0.03503068,196.21,196.17,0.03409]
[1739349585835,8.97868782,196.2,196.17,0.03409]
[1739349587135,14.07598782,196.2,196.17,0.03409]